Cogmind - Beta 17 @@@ ROGUE MODE // 2026.07.13 @ 21:38:59 Player: hlbuns Result: Destroyed self with Mini Grenade Launcher Performance ------------- Evolutions (0) 0 Regions Visited (3) 600 Robots Destroyed (14) 70 Value Destroyed (550) 550 Prototype IDs (2) 40 Alien Tech Used (0) 0 Bonus (781) 781 TOTAL SCORE: 2041 Bonus ------- Registered with UFD 300 Met Optimus in HQ 500 Friendly Fire -19 Cogmind --------- Core Integrity 0/250 Matter 290/300 Energy 250/250 System Corruption 2% Temperature Cool (12) Movement Walking (105) Location -8/Scraptown Parts ------- > --- POWER (1) -------- Ion Engine > --- PROPULSION (2) --- Aluminum Leg VSS Leg > --- UTILITY (2) ------ Small Storage Unit Signal Interpreter > --- WEAPON (2) ------- Overtuned Pulse Rifle Mini Grenade Launcher > --- INVENTORY (8) ---- Light Deuterium Engine VSS Leg Scrap Suit Cryofiber Web Scrap Shield Peak State ------------ > --- POWER ------------ Light Deuterium Engine > --- PROPULSION ------- Aluminum Leg VSS Leg > --- UTILITY ---------- Small Storage Unit Signal Interpreter > --- WEAPON ----------- Overtuned Pulse Rifle Improved Assault Rifle > --- INVENTORY -------- VSS Leg Scrap Suit Cryofiber Web Scrap Shield Shock Rifle Mini Grenade Launcher [Rating: 17] Favorites ----------- Power Ion Engine Engine Ion Engine Propulsion Aluminum Leg Leg Aluminum Leg Utility Small Storage Unit Device Heat Sink Storage Small Storage Unit Processor Signal Interpreter Weapon Improved Assault Rifle Energy Gun Overtuned Pulse Rifle Energy Cannon Advanced Beam Cannon Ballistic Gun Improved Assault Rifle Launcher Mini Grenade Launcher Build | -11 -10 -10 -8 ------- Run | Yrd Mat Sub Scr Slots Evolved . | . . . . Power . | . . . . Propulsion . | . . . . Utility . | . . . . Weapon . | . . . . Parts Attached 22 | 6 5 2 9 Power 3 | 1 . . 2 Engine 3 | 1 . . 2 Core . | . . . . Reactor . | . . . . Propulsion 8 | 2 1 1 4 Treads . | . . . . Leg 8 | 2 1 1 4 Wheel . | . . . . Hover . | . . . . Flight . | . . . . Utility 4 | 1 2 1 . Device 2 | . 2 . . Storage 1 | 1 . . . Processor 1 | . . 1 . Hackware . | . . . . Protection . | . . . . Artifact . | . . . . Weapon 7 | 2 2 . 3 Energy Gun 3 | 1 . . 2 Energy Cannon 1 | . 1 . . Ballistic Gun 2 | 1 1 . . Ballistic Cannon . | . . . . Launcher 1 | . . . 1 Special Weapon . | . . . . Impact Weapon . | . . . . Slashing Weapon . | . . . . Piercing Weapon . | . . . . Special Melee Weapon . | . . . . Unidentified Prototypes 2 | . 2 . . Parts Lost 6 | . . . 6 Power 2 | . . . 2 Propulsion 2 | . . . 2 Utility . | . . . . Weapon 2 | . . . 2 Highest Loss Streak 3 | . . . 3 To Critical Strikes . | . . . . Average Backups 6 | 1 5 6 6 Power . | . 1 . . Propulsion 1 | . . 2 1 Utility 1 | . . 1 2 Weapon 2 | . 3 3 1 Tool/Special . | . . . . Unused Backups 9 | . 3 1 5 Power 1 | . . 1 . Propulsion 2 | . 2 . . Utility 3 | . . . 3 Weapon 3 | . 1 . 2 Tool/Special . | . . . . Average Slot Usage (%) 96 | . 93 100 96 Engine 13 | . 14 14 12 Leg 27 | . 28 28 26 Device 4 | . 8 7 . Storage 14 | . 14 14 14 Processor 7 | . . 6 14 Energy Gun 6 | . 1 . 12 Energy Cannon 7 | . 12 14 1 Ballistic Gun 13 | . 14 14 11 Peak Build Rating 17 | 6 12 15 17 Average Rating 12 | 5 11 13 14 On Entrance 8 | . 6 12 15 Avg Prop Armor Cover (%) 9 | . . . 9 Naked Turns . | . . . . Heaviest Build 18 | 14 18 18 17 Greatest Support 30 | 20 20 30 30 Greatest Overweight (x) 1 | 1 . . 1 Average Overweight (x) . | . . . . Largest Inventory Capacity 8 | 8 8 8 8 Average Capacity 7 | 7 8 8 8 Most Carried 8 | 4 8 8 8 Average Carried 6 | 1 5 7 7 Final Capacity 8 | 8 8 8 8 Final Carried 8 | 4 7 8 7 Class Distribution -------------------- 100% | Mutant Dominant Class ---------------- Mutant | -10/Materials Mutant | -10/Subcaves Mutant | -8/Scraptown Resources | -11 -10 -10 -8 ----------- Run | Yrd Mat Sub Scr Matter Collected 596 | 176 178 35 207 Remotely . | . . . . Salvage Created 685 | . 179 101 405 Parts 34 | . 10 4 20 Haulers Intercepted . | . . . . Recyclers Shooed . | . . . . Parts Field Recycled . | . . . . Retrieved Matter . | . . . . Parts Self-Destructed 9 | . . 9 . Prevented . | . . . . Parts Restored . | . . . . Kills | -11 -10 -10 -8 ------- Run | Yrd Mat Sub Scr Combat Hostiles Destroyed 14 | . 4 2 8 Guns 8 | . 1 . 7 Cannons 5 | . 3 2 . AOE 1 | . . . 1 Classes Destroyed 6 | . 1 1 4 Grunt 5 | . 4 1 . Sentry 1 | . . 1 . Federalist 2 | . . . 2 Explorer 2 | . . . 2 Guru 2 | . . . 2 Scrapper 2 | . . . 2 Best Kill Streak 2 | . 2 2 2 Combat Bots Only 2 | . 2 2 2 Max Kills in Single Turn 2 | . 1 1 2 Gunslinging . | . . . . Exploded 1 | . . . 1 Melee . | . . . . Uniques/NPCs Destroyed . | . . . . Combat | -11 -10 -10 -8 -------- Run | Yrd Mat Sub Scr Hostile Shots Fired 92 | . 17 11 64 Missed 30 | . 5 6 19 Hits 62 | . 12 5 45 Melee 4 | . . . 4 Projectile 58 | . 12 5 41 Critical Strikes 2 | . . . 2 Part Disruptions 1 | . . . 1 Damage Taken 1036 | . 176 171 689 Core 259 | . 62 61 136 Absorbed by Shields . | . . . . Core Remaining (%) 100 | 100 . . . Volleys Fired 54 | . 10 5 39 Largest 2 | . 2 2 2 Hottest 103 | . 91 91 103 Shots Fired 89 | . 20 10 59 Gun 71 | . 10 5 56 Cannon 15 | . 10 5 . Launcher 3 | . . . 3 Special . | . . . . Kinetic 49 | . 10 5 34 Thermal 26 | . 10 5 11 Explosive 3 | . . . 3 Electromagnetic 11 | . . . 11 Robot Hit Streak 13 | . 13 10 12 Robot Miss Streak 4 | . 2 . 4 Penetration Max . | . . . . Secondary Targets 2 | . . . 2 Max Gunslinging Chain 1 | . . . 1 Shots Hit Robots 59 | . 15 8 36 Core Hits 23 | . 6 2 15 Critical Kills . | . . . . Critical Parts Destroyed 1 | . . . 1 Critical Strikes 3 | . . . 3 Burn 2 | . . . 2 Destroy 1 | . . . 1 Melee Attacks . | . . . . Impact . | . . . . Slashing . | . . . . Piercing . | . . . . Sneak Attacks . | . . . . Combat Hostiles . | . . . . Follow-up Attacks . | . . . . Damage Inflicted 1128 | . 310 156 662 Guns 783 | . 107 53 623 Cannons 306 | . 203 103 . Explosions 39 | . . . 39 Melee . | . . . . Ramming . | . . . . Kinetic 478 | . 107 53 318 Thermal 506 | . 203 103 200 Explosive 39 | . . . 39 Electromagnetic 105 | . . . 105 Impact . | . . . . Slashing . | . . . . Piercing . | . . . . Highest Corruption 2 | . 2 2 2 Average Corruption 2 | . 2 2 2 Corruption Purged . | . . . . Corruption Blocked . | . . . . Effects 22 | . 7 4 11 Message Errors 7 | . 2 2 3 Matter Fused 4 | . 2 . 2 Heat Flow Errors 3 | . 2 . 1 Energy Discharges 3 | . 1 1 1 Data Loss (minor) 2 | . . . 2 Data Loss (major) 3 | . . 1 2 Overload Shots . | . . . . Overflow Damage . | . . . . Projectiles . | . . . . Explosions . | . . . . Melee . | . . . . Knockbacks . | . . . . Impact . | . . . . Kinetic . | . . . . Secondary . | . . . . Self-Inflicted Damage 94 | . . . 94 Shots 2 | . . . 2 Rammed . | . . . . Targets Rammed . | . . . . Kicked . | . . . . Crushed . | . . . . Highest Temperature 437 | . 267 . 437 Average Temperature 158 | . 106 . 182 Received Heat Transfer 340 | . 93 24 223 Effects 4 | . . . 4 Shutdowns 1 | . . . 1 Energy Bleed 1 | . . . 1 Interference 1 | . . . 1 Damage (minor) 1 | . . . 1 Siege Activations . | . . . . Martial Activations . | . . . . Shielding Activations . | . . . . Robots Disrupted . | . . . . Combat Hostiles . | . . . . Robots Corrupted . | . . . . Combat Hostiles . | . . . . Parts Fried . | . . . . Impact Corruptions . | . . . . Robots Melted . | . . . . Combat Hostiles . | . . . . Parts Melted 2 | . . . 2 Heat Transferred 1140 | . 370 185 585 Parts Sabotaged . | . . . . Parts Stolen . | . . . . Parts Stripped . | . . . . Power Chain Reactions . | . . . . Alert | -11 -10 -10 -8 ------- Run | Yrd Mat Sub Scr Maximum Alert Level . | . . . . Low Security (%) 100 | 100 100 . . Level 1 . | . . . . Level 2 . | . . . . Level 3 . | . . . . Level 4 . | . . . . Level 5 . | . . . . High Security . | . . . . Max Security . | . . . . Peak Influence 50 | . 50 . . Initial . | . . . . Average 8 | . 9 . . Influence Increases 164 | . 124 40 . Destroy 0b10 Robot/C 120 | . 80 40 . Destroy Leader 20 | . 20 . . Successful Hack 8 | . 8 . . Destroy Structure 1 | . 1 . . Lose Combat Pursuer 15 | . 15 . . Influence Decreases 164 | . 124 20 20 Entered New Map 20 | . . . 20 Time Decay 144 | . 124 20 . Squads Dispatched 2 | . 2 . . Investigation 2 | . 2 . . Extermination . | . . . . Reinforcement . | . . . . Assault . | . . . . Garrison . | . . . . Intercept . | . . . . Searches Triggered . | . . . . Construction Impeded . | . . . . Haulers Reinforced . | . . . . Active Scanning Responses . | . . . . Cargo Convoy Interrupts . | . . . . Stealth | -11 -10 -10 -8 --------- Run | Yrd Mat Sub Scr Distress Signals . | . . . . Communications Jammed . | . . . . Distress Signals . | . . . . Times Spotted 22 | . 7 3 12 Peak Tracking Total 3 | . 3 2 3 Tactical Retreats 1 | . 1 . . Traps | -11 -10 -10 -8 ------- Run | Yrd Mat Sub Scr Traps Triggered 4 | . 3 1 . Indirectly . | . . . . Trap Hack Attempts . | . . . . Triggered . | . . . . Disarmed 3 | . 3 . . Reprogrammed . | . . . . Reused . | . . . . Traps Extracted . | . . . . Installed . | . . . . Triggered . | . . . . Machines | -11 -10 -10 -8 ---------- Run | Yrd Mat Sub Scr Machines Disabled 4 | . . . 4 Max in Single Turn 1 | . . . 1 Machines Repaired . | . . . . Machines Dismantled . | . . . . Machines Sabotaged . | . . . . Overloaded Fab Kills . | . . . . Hacking | -11 -10 -10 -8 --------- Run | Yrd Mat Sub Scr Machines Accessed 4 | . 2 . 2 Terminals 2 | . 2 . . Fabricators . | . . . . Repair Stations . | . . . . Recycling Units . | . . . . Scanalyzers . | . . . . Garrison Access . | . . . . Total Hacks 29 | . 5 . 24 Successful 26 | . 2 . 24 Failed 3 | . 3 . . Catastrophic 1 | . 1 . . Database Lockouts . | . . . . Manual 5 | . 5 . . Terminals 5 | . 5 . . Fabricators . | . . . . Repair Stations . | . . . . Recycling Units . | . . . . Scanalyzers . | . . . . Garrison Access . | . . . . Terminal Hacks 26 | . 2 . 24 Record 24 | . . . 24 Branch Access Points 1 | . 1 . . Disarm Traps 1 | . 1 . . Fabricator Hacks . | . . . . Repair Station Hacks . | . . . . Recycling Unit Hacks . | . . . . Scanalyzer . | . . . . Garrison Access Hacks . | . . . . Unauthorized Hacks . | . . . . Terminals . | . . . . Fabricators . | . . . . Repair Stations . | . . . . Recycling Units . | . . . . Scanalyzers . | . . . . Garrison Access . | . . . . Data Cores Recovered . | . . . . Used . | . . . . Hacking Detections 2 | . 2 . . Full Trace Events 1 | . 1 . . Feedback Events . | . . . . Feedback Blocked . | . . . . Robot Schematics Acquired . | . . . . Robots Built . | . . . . Authchips . | . . . . Time . | . . . . Total Robot Build Rating . | . . . . Part Schematics Acquired . | . . . . Parts Built . | . . . . Authchips . | . . . . Time . | . . . . Total Part Build Rating . | . . . . Part Studies Acquired . | . . . . Parts Repaired . | . . . . Time . | . . . . Parts Recycled . | . . . . Recycled Matter . | . . . . Retrieved Matter . | . . . . Retrieved Components . | . . . . Parts Scanalyzed . | . . . . Part Schematics Acquired . | . . . . Parts Damaged . | . . . . Bothacking | -11 -10 -10 -8 ------------ Run | Yrd Mat Sub Scr Used RIF Installer . | . . . . Robots Hacked . | . . . . Non-combat . | . . . . Combat . | . . . . Robot Hacks Applied . | . . . . Relay Couplers Released . | . . . . Fabnet Peak Effective % . | . . . . Robots Rewired . | . . . . Allies Hacked . | . . . . Hacks Repelled . | . . . . Allies | -11 -10 -10 -8 -------- Run | Yrd Mat Sub Scr Total Allies . | . . . . Largest Group . | . . . . Highest-Rated Group . | . . . . Highest-Rated Ally . | . . . . Total Orders . | . . . . Ally Attacks . | . . . . Total Damage . | . . . . Kills . | . . . . Allies Corrupted . | . . . . Allies Melted 1 | . . . 1 Intel | -11 -10 -10 -8 ------- Run | Yrd Mat Sub Scr Active Infowar (turns) 57 | . 57 . . Seismic 57 | . 57 . . Robot Analysis Total . | . . . . Derelict Logs Recovered . | . . . . Drone Launches . | . . . . Drone Recoveries . | . . . . Exploration | -11 -10 -10 -8 ------------- Run | Yrd Mat Sub Scr Turns Passed 2054 | 73 710 332 939 Spaces Moved 1495 | 52 549 254 640 Core 4 | 4 . . . Treads . | . . . . Legs 1491 | 48 549 254 640 Wheels . | . . . . Hover . | . . . . Flight . | . . . . Fastest Speed 50 | 50 120 120 90 Average Speed 123 | 115 120 123 127 Slowest Speed 190 | 120 120 130 190 Overloaded Moves . | . . . . Propulsion Burnouts . | . . . . Robots Hopped . | . . . . Potential Cave-ins . | . . . . Cave-ins Triggered . | . . . . Exploration Rate (%) 40 | 3 89 21 49 Regions Visited 3 Branch Regions 2 Pre-discovered Areas . | . . . . Known Exits Taken 1 | . . 1 . Unknown Exits Taken 2 | 1 1 . . Scrap Searched 2 | . . . 2 Spaces Dug . | . . . . Terrain Destroyed 16 | . . . 16 Melee . | . . . . Projectile . | . . . . AOE 16 | . . . 16 Terrain Rammed . | . . . . Walls Destroyed . | . . . . Machines Disabled . | . . . . Actions | -11 -10 -10 -8 --------- Run | Yrd Mat Sub Scr Total 1616 | 62 581 263 710 Wait 15 | . 4 . 11 Move 1492 | 51 548 253 640 Hop . | . . . . Pick Up 17 | 5 7 1 4 Fast Attach 12 | 5 2 . 5 Attach 3 | 1 . . 2 Detach 1 | . 1 . . Swap 8 | . 3 2 3 Drop 14 | . 6 2 6 Fire 54 | . 10 5 39 Melee . | . . . . Ram . | . . . . Kick . | . . . . Crush . | . . . . Escape Stasis . | . . . . Rewire . | . . . . Trap . | . . . . Miscellaneous . | . . . . Route ------- -11/Scrapyard -10/Materials (discovered 6 exits: [*Mat x3] / *Min x2 / [*Sub]) -10/Subcaves -8/Scraptown History --------- Turn | Location | Event 4 | -11/Scrapyard | Discovered new exit (range 16) 74 | -11/Scrapyard | Entered Materials 75 | -10/Materials | Met a group of wandering Federalists 308 | -10/Materials | Build established: Mutant 430 | -10/Materials | Discovered new exit (range 12) 543 | -10/Materials | Discovered new exit (range 3) 546 | -10/Materials | Discovered new exit (range 14) 635 | -10/Materials | Identified exit to Mines 719 | -10/Materials | Discovered new exit (range 14) 782 | -10/Materials | Discovered new exit (range 3) 784 | -10/Materials | Entered Subcaves 785 | -10/Subcaves | A swath of the cavern ceiling suddenly collapsed 785 | -10/Subcaves | Continued accompanying wandering Federalists (3) 1057 | -10/Subcaves | Identified exit to Scraptown 1116 | -10/Subcaves | Entered Scraptown 1333 | -8/Scraptown | Visited The Evicted 1391 | -8/Scraptown | Visited Spacefarers 1411 | -8/Scraptown | Visited TADAMA 1459 | -8/Scraptown | Visited UFD Registry 1459 | -8/Scraptown | Registered with UFD as "Metalface" 1518 | -8/Scraptown | Visited Analyses Database 1588 | -8/Scraptown | Met Optimus 1588 | -8/Scraptown | Accepted into 0bPrime 1640 | -8/Scraptown | Visited Supply Room 1662 | -8/Scraptown | Visited Scrap Suit Storage 1673 | -8/Scraptown | Found Scrap Suit 1695 | -8/Scraptown | Civil war broke out across Scraptown 1719 | -8/Scraptown | Core integrity fell below 50% 1811 | -8/Scraptown | Optimus destroyed in the chaos of civil war 1829 | -8/Scraptown | Lost 3 allies 1917 | -8/Scraptown | Attacked by Scraptown defenders 1921 | -8/Scraptown | Core integrity fell below 20% 1959 | -8/Scraptown | Lost 3 parts (1p1n1w) 2055 | -8/Scraptown | Destroyed self with Mini Grenade Launcher Last Messages --------------- 01928_ Aluminum Leg destroyed. 01930_ KA-RO1(x) destroyed. 01930_ Supplies damaged. 01931_ IJ-169(M) switches sides. [Achievement: Sprinter] 01944_ System corrupted: Component data lost. 01951_ Acquired 45 matter. 01954_ Acquired Ion Engine. 01957_ Acquired 10 matter. 02004_ Acquired Aluminum Leg. 02026_ Acquired 6 matter. 02027_ System corrupted: Matter fused (-6). 02034_ Acquired 10 matter. 02036_ IJ-169(M) system terminally corrupted. 02036_ BI-F4G(j) destroyed. 02036_ PM-2KC(p) destroyed. 02040_ Shock Rifle destroyed. 02041_ Acquired Lgt. Deuterium Engine. 02047_ Acquired 15 matter. 02055_ The unstable cave ceiling collapses. Map ----- +----------------------------------------------------+ | ## ################"" "## ! ##"#????????? | | """""""""""""""""""""" "## X" #????????? | | """""""""""""""""""""" = #????????? | | "## #????????? | | "## !! ! !#????????? | | ## #"""""#""#????????? | | #############????????? | | #???????????????????? | | """""" """"""""""" """"""!=*##???????????????????? | | ###### ########### ######%*!#????????????????????? | | ?# #????? ???#%=!#????????????????????? | | ?# #???? ?%[=!##???????????????????? | | ?#""" ""#???# #"%*[ ????????????????????? | | ?#"" "#???#"" ""# !=]*????????????????????? | | ?#"" " X "#???#" "# %[= ????????????????????? | | ?#""""""""#???#"" ""##%!*############?????????? | | ?##########????" "# %=%= #?????????? | | ????????????????" ""? != ##?????????? | | ???????????????" ??#!/ #?????????? | | ???????????????? &&" ??#j! #?????????? | | ????????????????""""""??#=! #?????????? | | ??????????####??####????# ;###########?????????? | | ########### ############ #####????????????????? | | #"""##"""## ## ""##"|" =%""""#????????????????? | | #|""##" "## = ##" / " "#????????????????? | | %[ %!!% ! @ "#????????????????? | | / = =[ "#????????????????? | | % """#????????????????? | | #"""##" |## #!!$##""|#; ;#####????????????????? | | #"""##"""##"" ##"""##" "#;#;#????????????????????? | | #############################????????????????????? | | ?????????????????????????????????????????????????? | | ?????????????????????????????????????????????????? | | ?????????????????????????????????????????????????? | | ?????????????????????????????????????????????????? | | ?????????????????????????????????????????????????? | | ?????????????????????????????????????????????????? | | ?????????????????????????????????????????????????? | | ?????????????????????????????????????????????????? | | ?????????????????????????????????????????????????? | | ?????????????????????????????????????????????????? | | ?????????????????????????????????????????????????? | | ?????????????????????????????????????????????????? | | ?????????????????????????????????????????????????? | | ?????????????????????????????????????????????????? | | | | | | | | | | | +----------------------------------------------------+ Best States ------------- Heat Dissipation 35 Energy Generation 14 Energy Capacity 250 Matter Stores 300 Matter Capacity 300 Sight Range 16 Terrain Scan Density 10 Evasion (%) 57 Item Schematics ----------------- None Robot Schematics ------------------ None Fabricated ------------ Nothing Repaired ---------- Nothing Studied --------- None Alien Tech Used ----------------- None Achievements -------------- Civilization 2243 Link The Feds Sprinter Strength In Numbers Challenges ------------ None Game ------ Seed GunAnalysisHarness Manual? 0 Play Time 00:30:06 Cumulative 17.0 hours Start 2026.07.13 @ 15:52:30 End 2026.07.13 @ 21:38:59 Sessions 5 Manual Loads 0 Difficulty Rogue Special Mode None Game No. 20 Rogue 8 Adventurer 12 Explorer 0 Win Type - Total 0 Types 0/0/0/0/0/0/0/0/0/0 Lore% 11 Gallery% 18 Achievement% 16 Wizard Run 0 Options --------- Layout 2 ASCII 0 Keyboard 1 Movement Arrows Keybinds 0 Fullscreen 2 Font 32/SmallcapsGlow Map View 50x44 Zoom Use 0% Tactical HUD 1 Map Filters NONE Filters NONE Steam 1 RUN: b0d7b632-3e6c-45a4-8bb4-36faffe58705